bitfinex-derivatives/quotes_SOLF0:USTF0_20250421
["timestamp","ask_amount","ask_price","bid_price","bid_amount"]
[1745247602486,0.0485216,139.72,139.69,0.05220512]
[1745247602686,0.0485216,139.72,139.7,30.46]
[1745247603180,2.346,139.8,139.71,18.75150071]
[1745247603380,2.2682,139.83,139.73,18.75150071]
[1745247603590,2.346,139.84,139.75,18.75150071]
[1745247603886,2.346,139.84,139.76,18.75150071]
[1745247604086,21.09750071,139.84,139.77,7.1527]
[1745247604383,0.02019313,139.81,139.79,0.05187359]
[1745247604980,7.1486,139.86,139.79,0.05187359]
[1745247605184,51.87750071,139.87,139.81,7.1506]
[1745247605482,51.87750071,139.87,139.76,18.75150071]
[1745247605682,7.1498,139.84,139.76,18.75150071]
[1745247605986,49.53150071,139.87,139.78,18.75150071]
[1745247606188,49.53150071,139.87,139.79,0.05476201]
[1745247606387,30.78,139.87,139.79,0.05476201]
[1745247606686,30.78,139.87,139.8,18.75150071]
[1745247606887,7.1483,139.87,139.8,18.75150071]
[1745247607091,7.1483,139.87,139.82,0.04677884]
[1745247607277,7.1483,139.87,139.84,7.1491]
[1745247607478,30.78,139.9,139.82,0.04677884]
[1745247607885,18.75150071,139.87,139.82,7.19717884]
[1745247608183,18.75150071,139.88,139.82,0.04677884]
[1745247608384,18.75150071,139.88,139.83,7.1496]
[1745247608585,7.1482,139.87,139.83,7.1496]
[1745247608787,18.75150071,139.88,139.82,0.04677884]
[1745247609089,7.1481,139.87,139.83,7.1496]
[1745247609585,18.75150071,139.88,139.83,7.1496]
[1745247609889,25.89930071,139.88,139.83,7.1496]
[1745247610289,18.75150071,139.88,139.82,0.04677884]
[1745247610891,18.75150071,139.86,139.82,0.04677884]
[1745247611092,18.75150071,139.86,139.78,30.78]
[1745247611387,7.1492,139.85,139.83,0.0502926]
[1745247612487,18.75150071,139.84,139.73,2.1762]
[1745247612687,18.75150071,139.84,139.64,47.38318202]
[1745247612688,18.75150071,139.78,139.7,30.78]
[1745247612889,25.90600071,139.74,139.65,30.78]
[1745247613097,25.90600071,139.74,139.66,7.3485922]
[1745247613098,18.75150071,139.74,139.66,7.3485922]
[1745247613387,25.90620071,139.74,139.69,7.1566]
[1745247613585,18.75150071,139.74,139.65,32.9544]
[1745247613786,18.75150071,139.72,139.7,0.0486882]
[1745247613982,7.1561,139.71,139.7,0.0486882]
[1745247614490,18.75150071,139.72,139.65,37.939]
[1745247614692,18.75150071,139.72,139.65,30.78]
[1745247614891,18.75150071,139.7,139.65,30.78]
[1745247615089,18.75150071,139.7,139.62,30.78]
[1745247615295,30.06620065,139.68,139.59,30.78]
[1745247615493,60.84620065,139.68,139.59,30.78]
[1745247615692,0.05264581,139.65,139.62,0.05371428]
[1745247616191,7.1601,139.64,139.62,0.05371428]
[1745247616491,30.11884646,139.65,139.57,566.6]
[1745247616895,63.05780065,139.68,139.57,566.6]
[1745247617594,7.20523694,139.64,139.61,0.04747564]
[1745247618397,0.04523694,139.64,139.61,0.04747564]
[1745247619394,7.20493694,139.64,139.61,0.04747564]
[1745247619892,0.04523694,139.64,139.61,0.04747564]
[1745247620096,30.84523694,139.64,139.61,0.04747564]
[1745247620295,30.84523694,139.64,139.56,30.78]
[1745247620992,30.06620065,139.62,139.56,30.78]
[1745247621590,0.05200939,139.6,139.58,0.05145699]
[1745247624294,0.05200939,139.6,139.59,7.1622]
[1745247624898,0.05200939,139.6,139.58,0.05145699]
[1745247625399,0.05200939,139.6,139.58,7.21385699]
[1745247625801,0.05200939,139.6,139.58,30.85145699]
[1745247626100,0.05200939,139.6,139.59,7.1622]
[1745247626902,2.1878,139.64,139.62,7.1605]
[1745247627204,2.2116,139.68,139.62,30.82]
[1745247627404,34.61140065,139.71,139.62,30.82]
[1745247628110,0.05263689,139.68,139.65,0.05295623]
[1745247629500,30.11883754,139.68,139.65,0.05295623]
[1745247629706,30.11883754,139.68,139.62,37.9805]
[1745247630007,30.11883754,139.68,139.62,30.82]
[1745247630306,30.11883754,139.68,139.6,37.9617]
[1745247630610,30.06620065,139.68,139.6,37.9617]
[1745247630798,0.0456083,139.65,139.63,0.05011115]
[1745247631003,30.11180895,139.65,139.6,30.8]
[1745247631201,2.2407,139.64,139.54,2.3581]
[1745247631407,2.2407,139.64,139.57,30.8]
[1745247631603,7.1607,139.62,139.58,7.1623]
[1745247631802,2.2407,139.64,139.58,7.1623]
[1745247632003,2.2407,139.64,139.57,30.8]
[1745247632308,0.04541171,139.62,139.6,0.04902389]
[1745247632507,2.2407,139.7,139.61,30.8]
[1745247633705,0.04909401,139.67,139.64,0.05229439]
[1745247633902,0.04909401,139.67,139.65,30.82]
[1745247634103,0.04909401,139.67,139.64,0.05229439]
[1745247634408,0.04909401,139.67,139.62,30.82]
[1745247634607,7.1599,139.64,139.6,7.1613]
[1745247634809,2.1487,139.66,139.59,30.98]
[1745247635407,9.3073,139.66,139.62,7.1604]
[1745247635612,0.05451476,139.64,139.62,7.1604]
[1745247635908,0.05451476,139.64,139.61,0.04729279]
[1745247636404,2.3293,139.71,139.69,7.157]
[1745247636610,2.3293,139.71,139.66,30.98]
[1745247637101,11.6296,139.75,139.66,30.98]
[1745247637306,4.4754,139.75,139.66,30.98]
[1745247637501,0.04620231,139.72,139.7,7.1562]
[1745247638705,0.04620231,139.72,139.71,7.1561]
[1745247639220,0.04620231,139.72,139.71,38.1361]
[1745247639403,34.56590065,139.8,139.73,7.1548]
[1745247639607,2.1807,139.79,139.71,30.98]
[1745247639911,30.06620065,139.77,139.71,30.98]
[1745247640307,61.04620065,139.77,139.69,7.157]
[1745247640511,0.05432134,139.75,139.73,0.04524383]
[1745247640812,30.06620065,139.74,139.68,30.98]
[1745247641113,7.1571,139.69,139.65,30.98]
[1745247641605,7.1561,139.71,139.65,30.98]
[1745247641811,33.1576,139.73,139.65,30.98]
[1745247642013,0.05441512,139.69,139.67,0.05264264]
[1745247643314,7.1584,139.67,139.62,30.98]
[1745247643709,30.06620065,139.68,139.62,30.98]
[1745247643908,30.06620065,139.68,139.58,2.3477]
[1745247643909,2.1374,139.67,139.59,30.98]
[1745247644410,7.20938661,139.64,139.62,0.04645584]
[1745247645108,0.04948661,139.64,139.62,0.04645584]
[1745247646013,7.20938661,139.64,139.62,0.04645584]
[1745247646215,0.04948661,139.64,139.62,0.04645584]
[1745247647715,0.04948661,139.64,139.62,7.20685584]
[1745247647919,0.04948661,139.64,139.62,0.04645584]
[1745247648216,30.06620065,139.7,139.63,30.98]
[1745247648414,30.06620065,139.7,139.65,7.1591]
[1745247648710,30.06620065,139.7,139.63,30.98]
[1745247649307,33.3021,139.72,139.63,30.98]
[1745247649609,0.05234648,139.68,139.65,0.04891411]
[1745247649814,0.05234648,139.68,139.66,7.1583]
[1745247650920,0.05234648,139.68,139.65,0.04891411]
[1745247651218,7.1581,139.67,139.65,0.04891411]
[1745247651419,0.05234648,139.68,139.65,0.04891411]
[1745247651919,30.06620065,139.67,139.57,30.98]
[1745247652119,30.06620065,139.64,139.57,30.98]
[1745247652919,0.05157085,139.62,139.59,0.05424412]
[1745247653114,7.21247085,139.62,139.59,0.05424412]
[1745247654417,7.1617,139.6,139.59,0.05424412]
[1745247654615,0.05157085,139.62,139.59,0.05424412]
[1745247654918,7.1617,139.6,139.59,0.05424412]
[1745247655119,30.06620065,139.61,139.55,30.98]
[1745247655608,30.06620065,139.61,139.55,38.1442]
[1745247656212,7.21736947,139.59,139.57,0.05186509]
[1745247656421,0.05466947,139.59,139.57,0.05186509]
[1745247657515,7.21686947,139.59,139.57,0.05186509]
[1745247657721,0.05466947,139.59,139.57,0.05186509]
[1745247658126,7.21726947,139.59,139.57,0.05186509]
[1745247659123,0.05466947,139.59,139.57,0.05186509]
[1745247659624,7.21716947,139.59,139.57,0.05186509]
[1745247660124,0.05466947,139.59,139.57,0.05186509]
[1745247660721,7.21696947,139.59,139.57,0.05186509]
[1745247660923,0.05466947,139.59,139.57,0.05186509]
[1745247661120,7.21716947,139.59,139.57,0.05186509]
[1745247661321,0.05466947,139.59,139.57,0.05186509]
[1745247662525,7.1627,139.58,139.57,0.05186509]
[1745247663426,7.1634,139.57,139.53,7.1651]
[1745247664129,7.1629,139.58,139.54,7.1647]
[1745247664529,30.06620065,139.58,139.52,30.98]
[1745247664724,0.0512972,139.57,139.55,0.04932972]
[1745247664924,7.1638,139.56,139.55,0.04932972]
[1745247667326,7.1656,139.53,139.49,597.64]
[1745247667827,7.1659,139.52,139.49,597.64]
[1745247668128,30.06620065,139.55,139.49,30.5]
[1745247668428,0.04545141,139.53,139.51,0.04547687]
[1745247669024,7.1658,139.52,139.51,0.04547687]
[1745247670531,7.167,139.5,139.47,7.1682]
[1745247670725,7.167,139.5,139.46,30.5]
[1745247670930,4.4435,139.54,139.46,30.5]
[1745247671129,7.1667,139.51,139.47,7.1681]
[1745247671329,2.2365,139.54,139.46,30.5]
[1745247671531,2.207,139.58,139.47,30.06620065]
[1745247671828,30.5,139.62,139.5,30.06620065]
[1745247672028,30.5,139.62,139.51,35.8892]
[1745247672233,30.5,139.62,139.56,7.1635]
[1745247672532,30.5,139.62,139.55,30.5]
[1745247672727,7.1627,139.59,139.55,37.6638]
[1745247673032,30.5,139.62,139.55,30.5]
[1745247673233,7.1636,139.57,139.56,0.04727832]
[1745247673726,7.1648,139.54,139.5,7.1667]
[1745247673927,30.06620065,139.56,139.49,30.5]
[1745247674326,7.1666,139.51,139.49,30.5]
[1745247674730,7.1666,139.51,139.47,7.1682]
[1745247674931,0.0533262,139.51,139.49,0.05377537]
[1745247675333,32.84,139.57,139.54,7.1645]
[1745247675334,2.34,139.57,139.54,7.1645]
[1745247675534,30.5,139.6,139.5,30.5]
[1745247675839,7.1625,139.59,139.56,7.1637]
[1745247676023,30.5,139.6,139.5,30.5]
[1745247676524,0.05044006,139.56,139.54,0.0546108]
[1745247676936,0.05044006,139.56,139.55,7.1643]
[1745247677236,0.05044006,139.56,139.54,0.0546108]
[1745247677534,0.05044006,139.56,139.54,7.2192108]
[1745247677834,0.05044006,139.56,139.54,0.0546108]
[1745247678033,0.05044006,139.56,139.54,7.2192108]
[1745247678233,0.05044006,139.56,139.54,0.0546108]
[1745247678633,7.1643,139.55,139.54,0.0546108]
[1745247679834,0.05044006,139.56,139.54,0.0546108]
[1745247680337,7.1643,139.55,139.54,0.0546108]
[1745247680635,7.1643,139.55,139.5,30.5]
[1745247680636,0.05044006,139.56,139.5,30.5]
[1745247680939,0.05044006,139.56,139.51,7.166]
[1745247681234,30.11664071,139.56,139.44,30.06620065]
[1745247681431,30.06620065,139.53,139.46,32.8116]
[1745247681738,30.06620065,139.5,139.42,597.88]
[1745247681931,7.1692,139.46,139.42,30.5]
[1745247683039,0.05268148,139.45,139.43,0.05409419]
[1745247683431,0.05268148,139.45,139.39,30.5]
[1745247683627,0.05268148,139.45,139.43,0.05110003]
[1745247683832,7.1699,139.44,139.43,0.05110003]
[1745247684738,7.22238148,139.45,139.43,0.05110003]
[1745247685237,0.05268148,139.45,139.43,0.05110003]
[1745247685639,0.05268148,139.45,139.44,7.1699]
[1745247685837,7.1676,139.49,139.43,30.57110003]
[1745247686538,7.1676,139.49,139.45,7.1692]
[1745247686941,0.05507104,139.48,139.45,7.1692]
[1745247687240,0.05507104,139.48,139.43,30.57110003]
[1745247687634,0.05507104,139.48,139.47,7.1684]
[1745247687838,0.05507104,139.48,139.43,30.52]
[1745247688042,7.22307104,139.48,139.46,0.0523444]
[1745247688235,0.05507104,139.48,139.46,0.0523444]
[1745247688438,0.05507104,139.48,139.46,0.05273185]
[1745247688637,7.22327104,139.48,139.46,0.05273185]
[1745247688842,0.05507104,139.48,139.46,0.05273185]
[1745247689041,7.22307104,139.48,139.46,0.05273185]
[1745247689337,0.05507104,139.48,139.46,0.05273185]
[1745247690937,0.05507104,139.48,139.47,7.1684]
[1745247694846,0.05507104,139.48,139.46,7.22143185]
[1745247695043,0.05507104,139.48,139.46,0.05273185]
[1745247697046,7.1684,139.47,139.46,0.05273185]
[1745247697549,0.05507104,139.48,139.46,0.05273185]
[1745247698949,7.22327104,139.48,139.46,0.05273185]
[1745247699145,0.05507104,139.48,139.46,0.05273185]
[1745247699649,7.1684,139.47,139.46,0.05273185]
[1745247699950,0.05507104,139.48,139.46,0.05273185]
[1745247701052,0.05507104,139.48,139.46,7.22133185]
[1745247701955,0.05507104,139.48,139.47,7.1684]
[1745247702351,0.05507104,139.48,139.46,0.05273185]
[1745247703451,7.22297104,139.48,139.46,0.05273185]
[1745247703845,0.05507104,139.48,139.46,7.22163185]
[1745247704043,0.05507104,139.48,139.46,0.05273185]
[1745247704454,1.24796041,139.58,139.47,567.78]
[1745247704749,2.2412,139.6,139.49,30.06620065]
[1745247704946,2.2412,139.6,139.55,7.1643]
[1745247705255,2.2412,139.6,139.54,30.52]
[1745247705755,0.05088342,139.58,139.56,0.04714478]
[1745247707458,7.21388342,139.58,139.56,0.04714478]
[1745247708160,7.1632,139.57,139.56,0.04714478]
[1745247708558,0.05088342,139.58,139.56,0.04714478]
[1745247708761,7.21388342,139.58,139.56,0.04714478]
[1745247709059,0.05088342,139.58,139.52,30.52]
[1745247709258,7.1642,139.56,139.52,30.52]
[1745247709456,0.05088342,139.58,139.49,30.52]
[1745247709760,30.06620065,139.54,139.47,569.9326]
[1745247710062,30.06620065,139.54,139.47,600.4526]
[1745247710259,0.05350899,139.52,139.49,7.21804612]
[1745247711066,7.21950899,139.52,139.49,0.05094612]
[1745247711861,7.1663,139.51,139.49,0.05094612]
[1745247712367,30.06620065,139.51,139.49,0.05094612]
[1745247712562,7.1668,139.5,139.49,0.05094612]
[1745247712962,30.06620065,139.51,139.44,30.52]
[1745247713162,30.06620065,139.51,139.44,37.6896]
[1745247713466,60.58620065,139.51,139.44,37.6896]
[1745247713870,7.1683,139.48,139.44,30.52]
[1745247714170,30.06620065,139.48,139.46,0.05083655]
[1745247714469,30.06620065,139.48,139.42,7.1707]
[1745247714666,30.1114055,139.48,139.46,0.04748209]
[1745247714868,7.1684,139.47,139.46,0.04748209]
[1745247715067,30.1114055,139.48,139.41,37.6912]
[1745247715671,7.1697,139.45,139.41,37.6912]
[1745247715871,30.06620065,139.48,139.41,30.52]
[1745247716067,34.9529,139.47,139.39,2.1557]
[1745247716271,30.06620065,139.45,139.43,0.05097326]
[1745247716567,30.06620065,139.45,139.38,30.52]
[1745247717468,30.06620065,139.45,139.38,37.6927]
[1745247717767,0.04837572,139.43,139.4,0.05452587]
[1745247717974,0.04837572,139.43,139.42,7.1709]
[1745247718472,0.04837572,139.43,139.4,30.57452587]
[1745247719174,0.04837572,139.43,139.4,37.74612587]
[1745247719472,0.04837572,139.43,139.4,30.57452587]
[1745247719665,0.04837572,139.43,139.42,7.1709]
[1745247720068,0.04837572,139.43,139.41,2.1286]
[1745247720474,0.04837572,139.43,139.4,30.57452587]
[1745247721072,7.21907572,139.43,139.4,30.57452587]
[1745247721375,0.04837572,139.43,139.4,30.57452587]
[1745247722375,7.21897572,139.43,139.4,30.57452587]
[1745247722874,7.1715,139.41,139.4,0.05452587]
[1745247723277,2.3344,139.42,139.4,0.05452587]
[1745247723776,2.3344,139.42,139.37,30.52]
[1745247723976,2.3344,139.42,139.36,2.1286]
[1745247724683,0.04837572,139.43,139.36,2.1286]
[1745247724868,0.04837572,139.43,139.39,7.1721]
[1745247725677,0.04837572,139.43,139.38,37.73873194]
[1745247725867,0.04837572,139.43,139.38,30.56603194]
[1745247726567,0.04837572,139.43,139.38,0.04603194]
[1745247726769,30.11457637,139.43,139.38,0.04603194]
[1745247728474,2.1969,139.42,139.38,0.04603194]
[1745247728673,32.7169,139.42,139.38,0.04603194]
[1745247728976,2.2775,139.41,139.38,0.04603194]
[1745247730075,30.06620065,139.4,139.38,0.04603194]
[1745247730374,32.34370065,139.41,139.38,0.04603194]
[1745247730677,2.2775,139.41,139.38,0.04603194]
[1745247731382,32.34370065,139.41,139.38,0.04603194]
[1745247732580,2.2775,139.41,139.38,0.04603194]
[1745247732879,2.2775,139.41,139.38,7.21903194]
[1745247733081,2.2775,139.41,139.38,0.04603194]
[1745247734181,32.34370065,139.41,139.38,0.04603194]
[1745247736485,32.34370065,139.41,139.34,7.1748]
[1745247736677,32.34370065,139.41,139.35,7.1744]
[1745247737490,32.34370065,139.41,139.34,7.1748]
[1745247737689,0.04670736,139.39,139.37,0.02134969]
[1745247738188,0.04670736,139.39,139.33,7.1755]
[1745247738387,30.06620065,139.38,139.31,32.6889]
[1745247738688,30.06620065,139.38,139.33,7.1756]
[1745247739184,0.04996834,139.37,139.33,7.1756]
[1745247739379,0.04996834,139.37,139.34,7.1748]
[1745247739986,0.04996834,139.37,139.31,32.6889]
[1745247742195,0.04996834,139.37,139.36,7.174]
[1745247746694,30.52,139.42,139.39,7.1724]
[1745247747895,0.04762028,139.42,139.39,0.04582654]
[1745247748396,0.04762028,139.42,139.39,30.56582654]
[1745247748595,0.04762028,139.42,139.41,7.1715]
[1745247752206,0.04762028,139.42,139.39,0.04582654]
[1745247754009,0.04762028,139.42,139.41,7.1715]
[1745247757410,0.04762028,139.42,139.4,7.1717]
[1745247757611,0.04762028,139.42,139.39,0.04582654]
[1745247758211,0.04762028,139.42,139.41,7.1715]
[1745247760411,0.04762028,139.42,139.4,7.1717]
[1745247760820,0.04762028,139.42,139.39,30.54582654]
[1745247761016,0.04762028,139.42,139.41,7.1715]
[1745247761819,2.2401,139.47,139.39,30.54582654]
[1745247762016,2.2401,139.47,139.4,7.40845471]
[1745247762216,2.2401,139.47,139.39,30.5]
[1745247762416,2.2401,139.47,139.4,7.40854708]
[1745247762714,2.2401,139.47,139.39,30.5]
[1745247762917,2.2401,139.47,139.45,7.1691]
[1745247763318,2.29462667,139.47,139.45,7.1691]
[1745247764122,2.29462667,139.47,139.44,7.1697]
[1745247764420,18.84932331,139.46,139.42,0.04938273]
[1745247764617,18.84932331,139.46,139.42,7.22008273]
[1745247764822,18.84932331,139.44,139.42,0.04938273]
[1745247767520,49.34932331,139.44,139.42,0.04938273]
[1745247770827,49.34932331,139.44,139.4,7.1717]
[1745247771024,18.84932331,139.42,139.4,7.1717]
[1745247772027,18.89978853,139.42,139.4,7.21990589]
[1745247772328,0.05046522,139.42,139.41,7.1715]
[1745247772829,18.89978853,139.42,139.4,0.04820589]
[1745247773628,18.89978853,139.42,139.4,7.21990589]
[1745247775426,18.89978853,139.42,139.41,7.1715]
[1745247776226,0.05046522,139.42,139.41,7.1715]
[1745247777528,18.89978853,139.42,139.41,7.1715]
[1745247779433,0.05046522,139.42,139.41,7.1715]
[1745247779833,2.2401,139.47,139.4,30.54820589]
[1745247780332,2.2401,139.47,139.44,7.1697]
[1745247780527,18.84932331,139.46,139.44,7.1697]
[1745247780723,18.84932331,139.46,139.37,30.5]
[1745247780923,18.84932331,139.43,139.37,30.5]
[1745247781234,18.84932331,139.43,139.4,0.04713285]
[1745247781235,0.04780628,139.41,139.4,0.04713285]
[1745247781532,0.04780628,139.41,139.4,7.21913285]
[1745247782429,18.89712959,139.41,139.4,7.21913285]
[1745247784131,0.04780628,139.41,139.4,7.21913285]
[1745247784340,2.2401,139.47,139.45,7.169]
[1745247784634,2.2401,139.47,139.37,63.69572331]
[1745247784831,2.2401,139.47,139.38,7.41862276]
[1745247785031,2.2401,139.47,139.39,7.41862276]
[1745247785238,28.25782331,139.47,139.4,7.41862276]
[1745247785533,0.05200488,139.45,139.44,7.1697]
[1745247788730,18.90132819,139.45,139.43,7.1701]
[1745247789132,18.90132819,139.45,139.44,7.1699]
[1745247789535,0.05200488,139.45,139.44,7.1699]
[1745247791535,0.05200488,139.45,139.43,7.1703]
[1745247791736,0.05200488,139.45,139.42,0.05356499]
[1745247792239,0.05200488,139.45,139.43,7.1702]
[1745247792537,7.1699,139.44,139.42,0.05356499]
[1745247792737,18.84932331,139.43,139.42,0.05356499]
[1745247793833,26.01972331,139.43,139.39,7.1723]
[1745247794534,18.84932331,139.41,139.38,37.6328]
[1745247794938,18.89820486,139.41,139.38,37.68678043]
[1745247795245,26.06970486,139.41,139.38,37.68678043]
[1745247795737,26.06970486,139.41,139.39,7.1723]
[1745247795738,18.89820486,139.41,139.39,7.1723]
[1745247796340,18.89820486,139.41,139.38,7.22678043]
[1745247796939,18.89820486,139.41,139.39,7.1725]
[1745247797137,18.89820486,139.41,139.38,0.05398043]
[1745247797341,18.84932331,139.39,139.35,30.46]
[1745247797832,18.84932331,139.37,139.35,30.46]
[1745247798038,18.84932331,139.37,139.34,7.1747]
[1745247798338,26.02292331,139.37,139.34,7.1747]
[1745247798539,26.07196757,139.37,139.34,7.21363197]
[1745247798834,18.89836757,139.37,139.34,0.03893197]
[1745247799040,18.84932331,139.35,139.29,30.48]
[1745247799340,18.84932331,139.32,139.26,32.8278]
[1745247799531,7.177,139.31,139.26,32.8278]
[1745247799736,18.84932331,139.29,139.26,32.8278]
[1745247800035,26.02632331,139.31,139.27,7.1784]
[1745247800237,0.04591549,139.29,139.26,32.8278]
[1745247800639,0.04591549,139.29,139.27,7.1784]
[1745247801242,7.1787,139.27,139.23,30.48]
[1745247801542,18.84932331,139.27,139.23,30.48]
[1745247801841,18.84932331,139.27,139.25,7.1797]
[1745247802141,18.84932331,139.27,139.23,30.48]
[1745247802340,18.84932331,139.27,139.23,37.6604]
[1745247803341,26.02802331,139.27,139.23,37.6604]
[1745247805239,18.84932331,139.27,139.23,37.6604]
[1745247805442,18.8952388,139.29,139.23,30.48]
[1745247805838,18.84932331,139.27,139.23,30.48]
[1745247806241,18.84932331,139.27,139.18,2.1508]
[1745247806542,18.84932331,139.25,139.18,2.1508]
[1745247806744,0.04735673,139.24,139.18,2.1508]
[1745247807138,0.04735673,139.24,139.19,7.1824]
[1745247807334,0.04735673,139.24,139.18,2.1508]
[1745247808135,0.04735673,139.24,139.22,7.1809]
[1745247808341,0.04735673,139.24,139.21,30.5]
[1745247808844,0.04735673,139.24,139.18,32.6508]
[1745247809037,0.04735673,139.24,139.18,30.5]
[1745247809238,7.22785673,139.24,139.2,7.1823]
[1745247809443,0.04735673,139.24,139.18,30.5]
[1745247810147,0.04735673,139.24,139.22,7.181]
[1745247811350,0.04735673,139.24,139.21,7.1815]
[1745247811547,0.04735673,139.24,139.18,30.5]
[1745247812548,7.181,139.23,139.19,7.1825]
[1745247812743,18.89668004,139.24,139.16,2.3044]
[1745247812944,18.84932331,139.24,139.16,2.3044]
[1745247813144,0.05343376,139.21,139.18,7.1831]
[1745247813447,0.05343376,139.21,139.16,2.3044]
[1745247813648,0.05343376,139.21,139.16,21.15372331]
[1745247814446,51.62312331,139.28,139.18,18.84932331]
[1745247814648,51.62312331,139.28,139.19,30.5]
[1745247814848,7.1788,139.27,139.23,7.1803]
[1745247815046,2.1925,139.3,139.24,30.5]
[1745247815250,30.5,139.33,139.24,49.34932331]
[1745247815444,0.05253537,139.3,139.28,7.1781]
[1745247815750,0.05253537,139.3,139.27,0.04880928]
[1745247817147,0.05253537,139.3,139.28,7.1781]
[1745247817553,7.22973537,139.3,139.27,0.04880928]
[1745247817747,7.22973537,139.3,139.27,7.22720928]
[1745247818052,0.05253537,139.3,139.27,0.04880928]
[1745247818247,18.90185868,139.3,139.27,0.04880928]
[1745247818549,7.178,139.29,139.27,0.04880928]
[1745247819047,0.05253537,139.3,139.27,0.04880928]
[1745247819551,0.05253537,139.3,139.28,7.1777]
[1745247819844,0.05253537,139.3,139.27,0.04880928]
[1745247820050,2.2989,139.35,139.29,7.1773]
[1745247820252,2.2989,139.35,139.28,30.48]
[1745247820253,18.84932331,139.34,139.28,30.48]
[1745247820550,18.84932331,139.34,139.28,37.6579]
[1745247820950,18.84932331,139.34,139.25,32.6718]
[1745247821152,18.89770987,139.32,139.3,0.05258811]
[1745247821346,7.1766,139.31,139.3,0.05258811]
[1745247822350,18.89770987,139.32,139.25,37.6595]
[1745247822548,18.84932331,139.29,139.25,37.6595]
[1745247822951,18.84932331,139.31,139.25,30.48]
[1745247823444,7.23103464,139.29,139.27,0.04743361]
[1745247823851,0.05333464,139.29,139.27,0.04743361]
[1745247824149,0.05333464,139.29,139.27,7.22593361]
[1745247824449,0.05333464,139.29,139.28,7.1782]
[1745247825353,0.05333464,139.29,139.27,0.04743361]
[1745247825655,7.23123464,139.29,139.27,0.04743361]
[1745247826459,0.05333464,139.29,139.27,0.04743361]
[1745247827056,7.23123464,139.29,139.27,0.04743361]
[1745247827659,7.1782,139.28,139.27,0.04743361]
[1745247830264,7.23113464,139.29,139.27,7.22603361]
[1745247830763,7.23113464,139.29,139.27,0.04743361]
[1745247830959,7.1782,139.28,139.27,0.04743361]
[1745247833264,0.05333464,139.29,139.27,0.04743361]
[1745247833762,7.1782,139.28,139.27,0.04743361]
[1745247834066,0.05333464,139.29,139.27,0.04743361]
[1745247834464,7.1782,139.28,139.27,0.04743361]
[1745247834768,0.05333464,139.29,139.27,0.04743361]
[1745247835268,7.1782,139.28,139.27,0.04743361]
[1745247836367,7.23113464,139.29,139.27,7.22583361]
[1745247836564,7.23113464,139.29,139.27,0.04743361]
[1745247836769,0.05333464,139.29,139.27,0.04743361]
[1745247836968,7.23123464,139.29,139.27,0.04743361]
[1745247837172,0.05333464,139.29,139.27,0.04743361]
[1745247837362,7.23133464,139.29,139.27,0.04743361]
[1745247837568,0.05333464,139.29,139.27,0.04743361]
[1745247838069,7.1782,139.28,139.27,0.04743361]
[1745247838271,0.05333464,139.29,139.27,0.04743361]
[1745247838570,7.23123464,139.29,139.27,7.22603361]
[1745247839377,7.1782,139.28,139.27,0.04743361]
[1745247839570,26.02752331,139.28,139.27,0.04743361]
[1745247840471,7.23123464,139.29,139.27,0.04743361]
[1745247840674,0.05333464,139.29,139.27,0.04743361]
[1745247841177,7.1782,139.28,139.27,0.04743361]
[1745247841975,0.05333464,139.29,139.27,0.04743361]
[1745247842674,7.1782,139.28,139.27,0.04743361]
[1745247842975,26.02752331,139.28,139.27,0.04743361]
[1745247843877,7.23123464,139.29,139.27,0.04743361]
[1745247844777,7.1782,139.28,139.27,0.04743361]
[1745247844977,0.05333464,139.29,139.27,0.04743361]
[1745247845874,7.1782,139.28,139.27,0.04743361]
[1745247847278,19.26587728,139.28,139.27,0.04743361]
[1745247847578,7.23123464,139.29,139.27,0.04743361]
[1745247847779,19.31891192,139.29,139.27,0.04743361]
[1745247848179,12.14101192,139.29,139.27,0.04743361]
[1745247849380,12.14101192,139.29,139.27,7.22573361]
[1745247850580,19.31871192,139.29,139.27,7.22573361]
[1745247850777,12.14101192,139.29,139.27,0.04743361]
[1745247851082,7.1791,139.27,139.23,30.44]
[1745247851380,12.08767728,139.25,139.23,30.44]
[1745247852076,12.14248843,139.25,139.23,37.6205]
[1745247852783,19.32228843,139.25,139.23,37.6205]
[1745247853584,18.95433911,139.25,139.2,30.44]
[1745247854084,7.1815,139.22,139.2,37.622]